Cogmind - Beta 14 @@@ ROGUE MODE // 2024.08.27 @ 16:48:24 Player: celerysam Result: Destroyed by Y-45 Defender with Heavy Assault Rifle Performance ------------- Evolutions (1) 500 Regions Visited (3) 600 Robots Destroyed (17) 85 Value Destroyed (420) 420 Prototype IDs (0) 0 Alien Tech Used (0) 0 Bonus (0) 0 TOTAL SCORE: 1605 Bonus ------- None Cogmind --------- Core Integrity 0/400 Matter 157/300 Energy 99/100 System Corruption 1% Temperature Cool (9) Movement Core (50) Location -9/Storage Parts ------- > --- POWER (1) -------- (None) > --- PROPULSION (3) --- (None) > --- UTILITY (3) ------ Improved Targeting Computer > --- WEAPON (2) ------- (None) > --- INVENTORY (5) ---- Light Treads Aluminum Leg Improved Aluminum Leg Improved Aluminum Leg Improved Aluminum Leg Peak State ------------ > --- POWER ------------ Ion Engine > --- PROPULSION ------- Armored Wheel VTOL Module VTOL Module > --- UTILITY ---------- Small Storage Unit Structural Scanner Improved Targeting Computer > --- WEAPON ----------- EM Shotgun Medium Laser > --- INVENTORY -------- Improved Aluminum Leg Improved Aluminum Leg Improved Aluminum Leg Armored Wheel Cooling System [Rating: 15] Favorites ----------- Power Ion Engine Engine Ion Engine Propulsion Light Treads Treads Light Treads Wheel Armored Wheel Flight Unit VTOL Module Utility Small Storage Unit Device Structural Scanner Storage Small Storage Unit Processor Improved Targeting Computer Weapon Medium Laser Energy Gun Medium Laser Ballistic Gun Shotgun Build | -11 -10 -9 -9 ------- Run | Yrd Mat Mat Sto Slots Evolved 2 | . . 2 . Power . | . . . . Propulsion 1 | . . 1 . Utility 1 | . . 1 . Weapon . | . . . . Parts Attached 32 | 7 3 5 17 Power 6 | 2 . 1 3 Engine 6 | 2 . 1 3 Core . | . . . . Reactor . | . . . . Propulsion 13 | 2 . 3 8 Treads 4 | 2 . . 2 Leg . | . . . . Wheel 3 | . . . 3 Hover . | . . . . Flight 6 | . . 3 3 Utility 3 | 1 1 1 . Device 1 | . . 1 . Storage 1 | 1 . . . Processor 1 | . 1 . . Hackware . | . . . . Protection . | . . . . Artifact . | . . . . Weapon 10 | 2 2 . 6 Energy Gun 7 | 2 . . 5 Energy Cannon . | . . . . Ballistic Gun 3 | . 2 . 1 Ballistic Cannon . | . . . . Launcher . | . . . . Special Weapon . | . . . . Impact Weapon . | . . . . Slashing Weapon . | . . . . Piercing Weapon . | . . . . Special Melee Weapon . | . . . . Unidentified Prototypes . | . . . . Parts Lost 18 | . . . 18 Power 3 | . . . 3 Propulsion 8 | . . . 8 Utility 2 | . . . 2 Weapon 5 | . . . 5 Highest Loss Streak 10 | . . . 10 To Critical Strikes . | . . . . Average Slot Usage (%) 83 | . 97 91 69 Engine 10 | . 14 11 7 Treads 15 | . 28 5 3 Wheel 5 | . . . 11 Flight 7 | . . 27 11 Device 2 | . . 11 3 Storage 12 | . 14 11 11 Processor 11 | . 11 11 11 Energy Gun 10 | . 16 2 5 Ballistic Gun 7 | . 11 11 3 Peak Build Rating 15 | 6 10 11 15 Average Rating 9 | 3 9 10 10 On Entrance 6 | . 6 9 11 Naked Turns . | . . . . Heaviest Build 16 | 13 15 12 16 Greatest Support 40 | 40 40 12 40 Greatest Overweight (x) 2 | 2 . . 1 Average Overweight (x) . | . . . . Largest Inventory Capacity 8 | 8 8 8 8 Average Capacity 7 | 7 8 8 8 Most Carried 8 | 7 8 8 8 Average Carried 7 | 5 7 7 7 Final Capacity 8 | 8 8 8 5 Final Carried 8 | 6 8 8 5 Class Distribution -------------------- 90% | Mutant 9% | Sprinter Dominant Class ---------------- Mutant | -10/Materials Mutant | -9/Materials Mutant | -9/Storage Resources | -11 -10 -9 -9 ----------- Run | Yrd Mat Mat Sto Matter Collected 357 | 168 64 . 125 Remotely . | . . . . Salvage Created 450 | . 99 . 351 Parts 29 | . 10 . 19 Haulers Intercepted . | . . . . Recyclers Shooed 1 | . . . 1 Parts Field Recycled . | . . . . Retrieved Matter . | . . . . Parts Self-Destructed . | . . . . Prevented . | . . . . Kills | -11 -10 -9 -9 ------- Run | Yrd Mat Mat Sto Combat Hostiles Destroyed 17 | . 9 . 8 Guns 13 | . 9 . 4 AOE 3 | . . . 3 Classes Destroyed 3 | . 1 . 2 Swarmer 9 | . 9 . . Grunt 6 | . . . 6 Sentry 2 | . . . 2 Best Kill Streak 5 | . 5 . 5 Combat Bots Only 5 | . 5 . 5 Max Kills in Single Turn 2 | . 2 . 2 Gunslinging . | . . . . Exploded 2 | . . . 2 Melee . | . . . . Uniques/NPCs Destroyed . | . . . . Combat | -11 -10 -9 -9 -------- Run | Yrd Mat Mat Sto Hostile Shots Fired 228 | . 51 7 170 Missed 67 | . 13 5 49 Damage Taken 2024 | . 306 28 1690 Core 478 | . 66 . 412 Absorbed by Shields . | . . . . Core Remaining (%) 86 | 100 73 . . Volleys Fired 41 | . 10 . 31 Largest 2 | . 2 . 2 Hottest 95 | . 73 . 95 Shots Fired 55 | . 20 . 35 Gun 55 | . 20 . 35 Cannon . | . . . . Launcher . | . . . . Special . | . . . . Kinetic 21 | . 10 . 11 Thermal 27 | . 10 . 17 Explosive . | . . . . Electromagnetic 7 | . . . 7 Robot Hit Streak 14 | . 4 . 14 Robot Miss Streak 2 | . 2 . 2 Penetration Max . | . . . . Secondary Targets 2 | . . . 2 Max Gunslinging Chain 1 | . . . 1 Shots Hit Robots 43 | . 13 . 30 Core Hits 25 | . 9 . 16 Critical Kills . | . . . . Critical Parts Destroyed . | . . . . Critical Strikes 2 | . . . 2 Burn 2 | . . . 2 Melee Attacks . | . . . . Impact . | . . . . Slashing . | . . . . Piercing . | . . . . Sneak Attacks . | . . . . Combat Hostiles . | . . . . Follow-up Attacks . | . . . . Damage Inflicted 779 | . 193 . 586 Guns 638 | . 193 . 445 Cannons . | . . . . Explosions 139 | . . . 139 Melee . | . . . . Ramming 2 | . . . 2 Kinetic 262 | . 106 . 156 Thermal 427 | . 87 . 340 Explosive . | . . . . Electromagnetic 88 | . . . 88 Impact . | . . . . Slashing . | . . . . Piercing . | . . . . Highest Corruption 1 | . . . 1 Average Corruption 1 | . . . 1 Corruption Purged . | . . . . Corruption Blocked . | . . . . Overload Shots . | . . . . Overflow Damage 8 | . . . 8 Projectiles . | . . . . Explosions 8 | . . . 8 Melee . | . . . . Knockbacks . | . . . . Impact . | . . . . Kinetic . | . . . . Secondary . | . . . . Self-Inflicted Damage 35 | . . . 35 Shots 1 | . . . 1 Rammed 1 | . . . 1 Targets Rammed 1 | . . . 1 Kicked . | . . . . Crushed . | . . . . Highest Temperature 156 | . 36 . 156 Average Temperature 46 | . 13 . 63 Received Heat Transfer 780 | . . 9 771 Siege Activations . | . . . . Robots Corrupted . | . . . . Combat Hostiles . | . . . . Parts Fried . | . . . . Impact Corruptions . | . . . . Robots Melted 1 | . . . 1 Combat Hostiles 1 | . . . 1 Parts Melted 3 | . . . 3 Heat Transferred 1175 | . 259 . 916 Parts Sabotaged . | . . . . Parts Stolen . | . . . . Parts Stripped . | . . . . Power Chain Reactions 2 | . . . 2 Alert | -11 -10 -9 -9 ------- Run | Yrd Mat Mat Sto Peak Influence 340 | . 225 109 340 Initial 94 | . . 94 45 Average 152 | . 125 102 226 Maximum Alert Level 1 | . 1 . 1 Low Security (%) 55 | 100 58 100 32 Level 1 44 | . 41 . 67 Level 2 . | . . . . Level 3 . | . . . . Level 4 . | . . . . Level 5 . | . . . . High Security . | . . . . Max Security . | . . . . Squads Dispatched 5 | . 1 . 4 Investigation . | . . . . Extermination . | . . . . Reinforcement 2 | . 1 . 1 Assault . | . . . . Garrison 3 | . . . 3 Intercept . | . . . . Searches Triggered . | . . . . Construction Impeded . | . . . . Haulers Reinforced . | . . . . Active Scanning Responses . | . . . . Cargo Convoy Interrupts . | . . . . Stealth | -11 -10 -9 -9 --------- Run | Yrd Mat Mat Sto Distress Signals 2 | . 1 . 1 Communications Jammed . | . . . . Distress Signals . | . . . . Times Spotted 37 | . 11 6 20 Peak Tracking Total 10 | . 4 6 10 Tactical Retreats 3 | . . . 3 Traps | -11 -10 -9 -9 ------- Run | Yrd Mat Mat Sto Traps Triggered 1 | . . . 1 Indirectly . | . . . . Trap Hack Attempts . | . . . . Triggered . | . . . . Disarmed . | . . . . Reprogrammed . | . . . . Reused . | . . . . Traps Extracted . | . . . . Installed . | . . . . Triggered . | . . . . Machines | -11 -10 -9 -9 ---------- Run | Yrd Mat Mat Sto Machines Disabled 1 | . . . 1 Max in Single Turn 1 | . . . 1 Machines Repaired . | . . . . Machines Dismantled . | . . . . Machines Sabotaged . | . . . . Overloaded Fab Kills . | . . . . Hacking | -11 -10 -9 -9 --------- Run | Yrd Mat Mat Sto Machines Accessed 4 | . 1 . 3 Terminals 4 | . 1 . 3 Fabricators . | . . . . Repair Stations . | . . . . Recycling Units . | . . . . Scanalyzers . | . . . . Garrison Access . | . . . . Total Hacks 4 | . 1 . 3 Successful 4 | . 1 . 3 Failed . | . . . . Catastrophic . | . . . . Database Lockouts . | . . . . Manual . | . . . . Terminals 4 | . 1 . 3 Fabricators . | . . . . Repair Stations . | . . . . Recycling Units . | . . . . Scanalyzers . | . . . . Garrison Access . | . . . . Terminal Hacks 4 | . 1 . 3 Open Door 2 | . . . 2 Alert Level 2 | . 1 . 1 Fabricator Hacks . | . . . . Repair Station Hacks . | . . . . Recycling Unit Hacks . | . . . . Scanalyzer . | . . . . Garrison Access Hacks . | . . . . Unauthorized Hacks . | . . . . Terminals . | . . . . Fabricators . | . . . . Repair Stations . | . . . . Recycling Units . | . . . . Scanalyzers . | . . . . Garrison Access . | . . . . Data Cores Recovered . | . . . . Used . | . . . . Hacking Detections 2 | . 1 . 1 Full Trace Events . | . . . . Feedback Events . | . . . . Feedback Blocked . | . . . . Robot Schematics Acquired . | . . . . Robots Built . | . . . . Authchips . | . . . . Time . | . . . . Total Robot Build Rating . | . . . . Part Schematics Acquired . | . . . . Parts Built . | . . . . Authchips . | . . . . Time . | . . . . Total Part Build Rating . | . . . . Parts Repaired . | . . . . Time . | . . . . Parts Recycled . | . . . . Recycled Matter . | . . . . Retrieved Matter . | . . . . Retrieved Components . | . . . . Parts Scanalyzed . | . . . . Part Schematics Acquired . | . . . . Parts Damaged . | . . . . Bothacking | -11 -10 -9 -9 ------------ Run | Yrd Mat Mat Sto Used RIF Installer . | . . . . Robots Hacked . | . . . . Non-combat . | . . . . Combat . | . . . . Robot Hacks Applied . | . . . . Relay Couplers Released . | . . . . Fabnet Peak Effective % . | . . . . Robots Rewired . | . . . . Allies Hacked . | . . . . Hacks Repelled . | . . . . Allies | -11 -10 -9 -9 -------- Run | Yrd Mat Mat Sto Total Allies . | . . . . Largest Group . | . . . . Highest-Rated Group . | . . . . Highest-Rated Ally . | . . . . Total Orders . | . . . . Ally Attacks . | . . . . Total Damage . | . . . . Kills . | . . . . Allies Corrupted . | . . . . Allies Melted . | . . . . Intel | -11 -10 -9 -9 ------- Run | Yrd Mat Mat Sto Robot Analysis Total . | . . . . Derelict Logs Recovered . | . . . . Drone Launches . | . . . . Drone Recoveries . | . . . . Exploration | -11 -10 -9 -9 ------------- Run | Yrd Mat Mat Sto Turns Passed 605 | 67 250 36 252 Spaces Moved 521 | 47 129 74 271 Core 31 | 30 . . 1 Treads 164 | 17 129 . 18 Legs . | . . . . Wheels 73 | . . . 73 Hover . | . . . . Flight 253 | . . 74 179 Fastest Speed 29 | 50 160 34 29 Average Speed 83 | 106 160 34 56 Slowest Speed 160 | 160 160 34 160 Overloaded Moves . | . . . . Propulsion Burnouts . | . . . . Robots Hopped 5 | . . 1 4 Cave-ins Triggered . | . . . . Exploration Rate (%) 26 | 5 39 13 49 Regions Visited 3 Branch Regions 1 Pre-discovered Areas . | . . . . Known Exits Taken . | . . . . Unknown Exits Taken 3 | 1 1 1 . Scrap Searched . | . . . . Spaces Dug . | . . . . Terrain Destroyed 4 | . . . 4 Melee . | . . . . Projectile . | . . . . AOE 4 | . . . 4 Terrain Rammed . | . . . . Walls Destroyed . | . . . . Machines Disabled . | . . . . Actions | -11 -10 -9 -9 --------- Run | Yrd Mat Mat Sto Total 635 | 62 156 83 334 Wait 1 | . 1 . . Move 508 | 46 128 71 263 Hop 5 | . . 1 4 Pick Up 30 | 9 8 3 10 Fast Attach 8 | 3 1 . 4 Attach 15 | 3 1 2 9 Detach 3 | . . 1 2 Swap 9 | 1 1 3 4 Drop 14 | . 6 2 6 Fire 41 | . 10 . 31 Melee . | . . . . Ram . | . . . . Kick . | . . . . Crush 1 | . . . 1 Escape Stasis . | . . . . Rewire . | . . . . Trap . | . . . . Miscellaneous . | . . . . Route ------- -11/Scrapyard -10/Materials -9/Materials -9/Storage History --------- Turn | Location | Event 5 | -11/Scrapyard | Discovered new exit (range 16) 68 | -11/Scrapyard | Entered Materials 289 | -10/Materials | Discovered new exit (range 8) 318 | -10/Materials | Build established: Mutant 318 | -10/Materials | Entered another Materials area 318 | -9/Materials | Evolved 2 slots: Propulsion x1, Utility x1 349 | -9/Materials | Discovered new exit (range 15) 354 | -9/Materials | Entered Storage 369 | -9/Storage | Garrison activated, responded to threat 485 | -9/Storage | Lost 6 parts (3n1u2w) 533 | -9/Storage | Core integrity fell below 50% 579 | -9/Storage | Core integrity fell below 20% 606 | -9/Storage | Destroyed by Y-45 Defender with Heavy Assault Rifle Last Messages --------------- 00561_ Acquired Lgt. Treads. 00563_ Critical hit (Burn: +37). 00565_ G-47 Trooper suffers critical hit (Burn). 00569_ Ion Engine destroyed. 00579_ Aluminum Leg melted. 00579_ Particle Gun melted. 00579_ G-47 Trooper destroyed. 00581_ Acquired 49 matter. 00585_ Slammed into Y-45 Defender. 00590_ G-34 Mercenary suffers critical hit (Burn). 00591_ Triggered EMP Trap. 00591_ A bubble of electromagnetic force engulfs the area. 00591_ EMP Trap short circuited. 00591_ A bubble of electromagnetic force engulfs the area. 00591_ Lgt. Treads destroyed. 00591_ Beam Rifle destroyed. 00597_ U-05 Engineer lays Concrete. 00602_ Connecting with Door Terminal... 00604_ Lgt. Treads destroyed. 00606_ Sml. Storage Unit destroyed. Map ----- +----------------------------------------------------+ | """ ?# # # /?????????????????????? | | """ ?# # # #?#######?????????????? | | """ # # # #?# #??????????? | | # # / #?# """ #??????????? | | + + """" # #?# """ #??????????? | | # # """" # #?# """ #??????????? | | "T" # # """" # #?# #??????????? | | """ # # """" # #?# """ #??????????? | | ######## ########## ### """ #??????????? | | ??????# ##??????# + """ #??????????? | | ??????# ##??????# ### #??????????? | | ??????# ##??????# #?#####+####??????????? | | ####??# ##??????# ##### #????????????? | | ####??# ##??????# #????????????? | | """##### ##???????# #????????????? | | "Y"##### ##??###### ##### #????????????? | | # ##??# =" # #???######????????????? | | # ##??# # #?????????????????????? | | # ##??#= " + #?????????????????????? | | "" " =+ ##??####T# #?????????????????????? | | "" " %#= ##?????### #?????????????????????? | | "" " =!#[[ ##???????# #?????????????????????? | | %#!! ##??????## ##????##??????????????? | | ==%=!######??# #####T#"?????????????? | | #########/#######??# Yg= "?????????????? | | # ##??# Y!@ "?????????????? | | ???? # ![ ##??# #######"?????????????? | | ???? # ! ##??## #########?????????????? | | ???? # ###### # ?????????????? | | ???? #"" """ ###### + ??????????????? | | ? #"Y """ + # ????????????????????? | | ###?##"" """ # # ????????????????????? | | ##### # ###### ????????????????????? | | ############### ###### ????????????????????? | | # + ##?????????????????????????? | | + %= ##########?????????????????????????? | | # * ##########?????????????????????????? | | ## ##?????????????????????????????????? | | ############?????????????????????????????????? | | ############?????????????????????????????????? | | | | | | | | | | | | | | | | | | | | | +----------------------------------------------------+ Best States ------------- Heat Dissipation 28 Energy Generation 12 Energy Capacity 265 Matter Stores 205 Matter Capacity 300 Sight Range 16 Terrain Scan Density 10 Evasion (%) 64 Targeting Accuracy 6 Recoil Reduction 2 Item Schematics ----------------- None Robot Schematics ------------------ None Fabricated ------------ Nothing Alien Tech Used ----------------- None Achievements -------------- None Challenges ------------ None Game ------ Seed SystemImpulseThermoblaster Manual? 0 Play Time 00:13:30 Cumulative 132.2 hours Start 2024.08.27 @ 16:36:23 End 2024.08.27 @ 16:48:24 Sessions 1 Manual Loads 0 Difficulty Rogue Special Mode None Game No. 186 Rogue 186 Adventurer 0 Explorer 0 Win Type - Total 0 Types 0/0/0/0/0/0/0/0/0 Lore% 31 Gallery% 58 Achievement% 39 Wizard Run 0 Options --------- Layout 0 ASCII 0 Keyboard 0 Movement Mouse Keybinds 0 Fullscreen 1 Font 24/Smallcaps Map View 76x50 Zoom Use 0% Tactical HUD 1 Map Filters NONE Filters NONE Steam 1 RUN: d3d338a1-b343-4d7f-8a7f-cb96348c73f5